[Event "Titled Tuesday Blitz July 11 Early 2023"]
[White "Perez Candelario, Manuel"]
[Black "Shapiro, Daniel"]
[WhiteFideId "2210622"]
[BlackFideId "2001780"]
[WhiteElo "2649"]
[BlackElo "2348"]
[Result "1-0"]
[Round "2"]
[TimeControl "180+2"]
[Date "2023.07.11"]
[WhiteClock "0:01:10"]
[BlackClock "0:00:11"]
[Board "90"]

1. e4 {[%clk 0:03:00]}  e5 {[%clk 0:02:45]} 2. Nf3 {[%clk 0:03:00]}  Nc6 {[%clk 0:02:45]} 3. d4 {[%clk 0:03:00]}  exd4 {[%clk 0:02:44]} 4. Nxd4 {[%clk 0:03:01]}  d6 {[%clk 0:02:44]} 5. Nc3 {[%clk 0:02:59]}  Nf6 {[%clk 0:02:43]} 6. Bf4 {[%clk 0:02:55]}  Be7 {[%clk 0:02:42]} 7. Qd2 {[%clk 0:02:55]}  O-O {[%clk 0:02:41]} 8. O-O-O {[%clk 0:02:54]}  Bd7 {[%clk 0:02:42]} 9. f3 {[%clk 0:02:47]}  a6 {[%clk 0:02:42]} 10. g4 {[%clk 0:02:43]}  b5 {[%clk 0:02:30]} 11. Kb1 {[%clk 0:02:36]}  b4 {[%clk 0:02:27]} 12. Nxc6 {[%clk 0:02:31]}  bxc3 {[%clk 0:01:52]} 13. Nxe7+ {[%clk 0:02:21]}  Qxe7 {[%clk 0:01:49]} 14. Qxc3 {[%clk 0:02:15]}  Nxg4 {[%clk 0:01:15]} 15. Rg1 {[%clk 0:01:52]}  Ne5 {[%clk 0:01:14]} 16. Bc4 {[%clk 0:01:32]}  Bb5 {[%clk 0:01:13]} 17. Bb3 {[%clk 0:01:25]}  a5 {[%clk 0:01:12]} 18. a4 {[%clk 0:01:24]}  Bd7 {[%clk 0:01:08]} 19. Bg5 {[%clk 0:01:19]}  Qe8 {[%clk 0:01:03]} 20. Bh6 {[%clk 0:01:10]}  g6 {[%clk 0:00:11]} 21. f4 {[%clk 0:01:10]} 1-0


[Site "https://www.chess.com"]

[Event "Titled Tuesday Blitz July 11 Early 2023"]
[White "Fajdetic, Hrvoje"]
[Black "Katz, Alexander"]
[WhiteFideId "14501945"]
[BlackFideId "2039796"]
[WhiteElo "2337"]
[BlackElo "2642"]
[Result "0-1"]
[Round "2"]
[TimeControl "180+2"]
[Date "2023.07.11"]
[WhiteClock "0:00:06"]
[BlackClock "0:00:20"]
[Board "91"]

1. d4 {[%clk 0:02:56]}  Nf6 {[%clk 0:02:45]} 2. Bf4 {[%clk 0:02:53]}  d6 {[%clk 0:02:44]} 3. Nc3 {[%clk 0:02:52]}  g6 {[%clk 0:02:45]} 4. e4 {[%clk 0:02:52]}  c6 {[%clk 0:02:45]} 5. Qd2 {[%clk 0:02:52]}  b5 {[%clk 0:02:45]} 6. f3 {[%clk 0:02:50]}  Nbd7 {[%clk 0:02:36]} 7. O-O-O {[%clk 0:02:47]}  b4 {[%clk 0:02:32]} 8. Nce2 {[%clk 0:02:43]}  Qa5 {[%clk 0:02:31]} 9. Kb1 {[%clk 0:02:43]}  e5 {[%clk 0:02:31]} 10. Be3 {[%clk 0:02:13]}  Nb6 {[%clk 0:02:07]} 11. Nc1 {[%clk 0:02:10]}  Be6 {[%clk 0:02:01]} 12. Nb3 {[%clk 0:01:30]}  Bxb3 {[%clk 0:01:57]} 13. axb3 {[%clk 0:01:29]}  Bg7 {[%clk 0:01:41]} 14. dxe5 {[%clk 0:01:19]}  dxe5 {[%clk 0:01:38]} 15. Qd6 {[%clk 0:01:14]}  Nfd7 {[%clk 0:00:41]} 16. Qxc6 {[%clk 0:01:05]}  O-O {[%clk 0:00:37]} 17. Qb5 {[%clk 0:00:42]}  Qxb5 {[%clk 0:00:37]} 18. Bxb5 {[%clk 0:00:43]}  Rfd8 {[%clk 0:00:33]} 19. Nh3 {[%clk 0:00:33]}  Bf8 {[%clk 0:00:32]} 20. Rd3 {[%clk 0:00:24]}  Nc5 {[%clk 0:00:32]} 21. Bxc5 {[%clk 0:00:18]}  Bxc5 {[%clk 0:00:30]} 22. Rhd1 {[%clk 0:00:17]}  Rxd3 {[%clk 0:00:28]} 23. Rxd3 {[%clk 0:00:17]}  Kg7 {[%clk 0:00:28]} 24. g3 {[%clk 0:00:15]}  a6 {[%clk 0:00:28]} 25. Bc6 {[%clk 0:00:14]}  Ra7 {[%clk 0:00:20]} 26. f4 {[%clk 0:00:13]}  exf4 {[%clk 0:00:18]} 27. gxf4 {[%clk 0:00:14]}  a5 {[%clk 0:00:18]} 28. e5 {[%clk 0:00:13]}  Rc7 {[%clk 0:00:18]} 29. Bd5 {[%clk 0:00:11]}  a4 {[%clk 0:00:18]} 30. bxa4 {[%clk 0:00:10]}  Nxa4 {[%clk 0:00:18]} 31. Bb3 {[%clk 0:00:11]}  Nb6 {[%clk 0:00:19]} 32. Ng5 {[%clk 0:00:11]}  h6 {[%clk 0:00:17]} 33. Nxf7 {[%clk 0:00:10]}  Rxf7 {[%clk 0:00:17]} 34. Bxf7 {[%clk 0:00:11]}  Kxf7 {[%clk 0:00:18]} 35. c3 {[%clk 0:00:10]}  bxc3 {[%clk 0:00:16]} 36. Rxc3 {[%clk 0:00:11]}  Bd4 {[%clk 0:00:16]} 37. Rc6 {[%clk 0:00:11]}  Be3 {[%clk 0:00:14]} 38. Rf6+ {[%clk 0:00:10]}  Kg7 {[%clk 0:00:14]} 39. h3 {[%clk 0:00:10]}  Nd5 {[%clk 0:00:14]} 40. Rd6 {[%clk 0:00:06]}  Nxf4 {[%clk 0:00:15]} 41. e6 {[%clk 0:00:06]}  Kf6 {[%clk 0:00:14]} 42. h4 {[%clk 0:00:04]}  Nxe6 {[%clk 0:00:14]} 43. h5 {[%clk 0:00:04]}  gxh5 {[%clk 0:00:14]} 44. Kc2 {[%clk 0:00:04]}  h4 {[%clk 0:00:15]} 45. Kd3 {[%clk 0:00:04]}  Bf4 {[%clk 0:00:15]} 46. Rd7 {[%clk 0:00:03]}  h3 {[%clk 0:00:15]} 47. Ke2 {[%clk 0:00:04]}  h2 {[%clk 0:00:16]} 48. Rd1 {[%clk 0:00:04]}  Be5 {[%clk 0:00:16]} 49. Rh1 {[%clk 0:00:04]}  Nd4+ {[%clk 0:00:15]} 50. Kd3 {[%clk 0:00:04]}  Nf3 {[%clk 0:00:15]} 51. b4 {[%clk 0:00:03]}  Kg5 {[%clk 0:00:14]} 52. Ke3 {[%clk 0:00:03]}  Kg4 {[%clk 0:00:14]} 53. Kf2 {[%clk 0:00:03]}  h5 {[%clk 0:00:14]} 54. Kg2 {[%clk 0:00:04]}  h4 {[%clk 0:00:15]} 55. b5 {[%clk 0:00:04]}  h3+ {[%clk 0:00:15]} 56. Kf2 {[%clk 0:00:04]}  Bd4+ {[%clk 0:00:16]} 57. Ke2 {[%clk 0:00:04]}  Kg3 {[%clk 0:00:16]} 58. Kd3 {[%clk 0:00:04]}  Bb6 {[%clk 0:00:16]} 59. Kc4 {[%clk 0:00:04]}  Kg2 {[%clk 0:00:17]} 60. Rd1 {[%clk 0:00:04]}  h1=Q {[%clk 0:00:17]} 61. Rxh1 {[%clk 0:00:04]}  Kxh1 {[%clk 0:00:18]} 62. Kd5 {[%clk 0:00:04]}  Kg2 {[%clk 0:00:18]} 63. Kc6 {[%clk 0:00:05]}  Bf2 {[%clk 0:00:18]} 64. b6 {[%clk 0:00:06]}  Bxb6 {[%clk 0:00:19]} 65. Kxb6 {[%clk 0:00:07]}  h2 {[%clk 0:00:19]} 66. Kc5 {[%clk 0:00:06]}  h1=Q {[%clk 0:00:20]} 0-1


[Site "https://www.chess.com"]

[Event "Titled Tuesday Blitz July 11 Early 2023"]
[White "Arabidze, Meri"]
[Black "Wernberg, Hugo"]
[WhiteFideId "13604040"]
[BlackFideId "1737511"]
[WhiteElo "2642"]
[BlackElo "2326"]
[Result "1-0"]
[Round "2"]
[TimeControl "180+2"]
[Date "2023.07.11"]
[WhiteClock "0:01:58"]
[BlackClock "0:00:00"]
[Board "92"]

1. b3 {[%clk 0:03:00]}  e5 {[%clk 0:02:59]} 2. Bb2 {[%clk 0:03:01]}  Nc6 {[%clk 0:02:59]} 3. c4 {[%clk 0:03:01]}  Nf6 {[%clk 0:02:57]} 4. g3 {[%clk 0:03:01]}  d5 {[%clk 0:02:54]} 5. Bg2 {[%clk 0:03:02]}  d4 {[%clk 0:02:42]} 6. e3 {[%clk 0:03:02]}  Bg4 {[%clk 0:02:13]} 7. f3 {[%clk 0:02:51]}  Bf5 {[%clk 0:02:03]} 8. e4 {[%clk 0:02:51]}  Bg6 {[%clk 0:02:02]} 9. d3 {[%clk 0:02:52]}  Bb4+ {[%clk 0:02:00]} 10. Nd2 {[%clk 0:02:52]}  h5 {[%clk 0:01:54]} 11. a3 {[%clk 0:02:51]}  Bd6 {[%clk 0:01:53]} 12. b4 {[%clk 0:02:51]}  h4 {[%clk 0:01:48]} 13. c5 {[%clk 0:02:51]}  Be7 {[%clk 0:01:47]} 14. Nc4 {[%clk 0:02:50]}  hxg3 {[%clk 0:01:45]} 15. hxg3 {[%clk 0:02:51]}  Rxh1 {[%clk 0:01:45]} 16. Bxh1 {[%clk 0:02:51]}  a6 {[%clk 0:01:17]} 17. Ne2 {[%clk 0:02:49]}  b5 {[%clk 0:01:08]} 18. cxb6 {[%clk 0:02:33]}  cxb6 {[%clk 0:01:09]} 19. f4 {[%clk 0:02:33]}  Ng4 {[%clk 0:00:46]} 20. Bf3 {[%clk 0:02:25]}  b5 {[%clk 0:00:32]} 21. Na5 {[%clk 0:02:13]}  Nxa5 {[%clk 0:00:14]} 22. Bxg4 {[%clk 0:02:13]}  Nc6 {[%clk 0:00:14]} 23. Rc1 {[%clk 0:02:06]}  Qb6 {[%clk 0:00:09]} 24. Qc2 {[%clk 0:02:05]}  Nd8 {[%clk 0:00:03]} 25. fxe5 {[%clk 0:02:05]}  Bg5 {[%clk 0:00:02]} 26. Bxd4 {[%clk 0:02:03]}  Qb7 {[%clk 0:00:01]} 27. Nf4 {[%clk 0:02:00]}  Bxf4 {[%clk 0:00:01]} 28. gxf4 {[%clk 0:02:00]}  Rb8 {[%clk 0:00:00]} 29. f5 {[%clk 0:01:58]} 1-0


[Site "https://www.chess.com"]

[Event "Titled Tuesday Blitz July 11 Early 2023"]
[White "Lopez Del Alamo, Antonio"]
[Black "Koshulyan, Egor A."]
[WhiteFideId "2227339"]
[BlackFideId "24237000"]
[WhiteElo "2323"]
[BlackElo "2639"]
[Result "0-1"]
[Round "2"]
[TimeControl "180+2"]
[Date "2023.07.11"]
[WhiteClock "0:01:25"]
[BlackClock "0:01:06"]
[Board "93"]

1. e4 {[%clk 0:03:00]}  c5 {[%clk 0:03:00]} 2. Nf3 {[%clk 0:02:57]}  Nc6 {[%clk 0:02:59]} 3. b4 {[%clk 0:02:56]}  cxb4 {[%clk 0:02:57]} 4. d4 {[%clk 0:02:54]}  d5 {[%clk 0:02:57]} 5. exd5 {[%clk 0:02:53]}  Qxd5 {[%clk 0:02:58]} 6. c4 {[%clk 0:02:53]}  bxc3 {[%clk 0:02:56]} 7. Nxc3 {[%clk 0:02:52]}  Qa5 {[%clk 0:02:57]} 8. Rb1 {[%clk 0:02:51]}  e6 {[%clk 0:02:31]} 9. Bd2 {[%clk 0:02:47]}  Nf6 {[%clk 0:02:24]} 10. Nb5 {[%clk 0:02:41]}  Qd8 {[%clk 0:02:24]} 11. Bf4 {[%clk 0:02:36]}  Nd5 {[%clk 0:02:23]} 12. Qd2 {[%clk 0:02:32]}  a6 {[%clk 0:02:04]} 13. Nc3 {[%clk 0:02:19]}  Bb4 {[%clk 0:02:03]} 14. Rxb4 {[%clk 0:02:19]}  Ncxb4 {[%clk 0:02:02]} 15. Ne4 {[%clk 0:02:16]}  O-O {[%clk 0:01:58]} 16. Be2 {[%clk 0:02:16]}  Nxf4 {[%clk 0:01:56]} 17. Qxf4 {[%clk 0:02:15]}  Nc2+ {[%clk 0:01:56]} 18. Kf1 {[%clk 0:02:13]}  Nxd4 {[%clk 0:01:55]} 19. Bd3 {[%clk 0:02:09]}  Nf5 {[%clk 0:01:52]} 20. Ke2 {[%clk 0:02:05]}  Nd4+ {[%clk 0:01:32]} 21. Nxd4 {[%clk 0:02:02]}  Qxd4 {[%clk 0:01:33]} 22. Rd1 {[%clk 0:02:01]}  f5 {[%clk 0:01:22]} 23. Bb1 {[%clk 0:01:48]}  Qb2+ {[%clk 0:01:12]} 24. Nd2 {[%clk 0:01:43]}  Bd7 {[%clk 0:01:12]} 25. Kf1 {[%clk 0:01:41]}  Bb5+ {[%clk 0:01:08]} 26. Kg1 {[%clk 0:01:41]}  Rad8 {[%clk 0:01:07]} 27. h4 {[%clk 0:01:40]}  Be2 {[%clk 0:01:07]} 28. Qe5 {[%clk 0:01:25]}  Qxe5 {[%clk 0:01:06]} 0-1


[Site "https://www.chess.com"]

[Event "Titled Tuesday Blitz July 11 Early 2023"]
[White "Suleymanli, Suleyman"]
[Black "Garrido, Denis"]
[WhiteFideId "13416375"]
[BlackFideId "601217"]
[WhiteElo "2637"]
[BlackElo "2316"]
[Result "1-0"]
[Round "2"]
[TimeControl "180+2"]
[Date "2023.07.11"]
[WhiteClock "0:03:03"]
[BlackClock "0:02:46"]
[Board "95"]

1. Nf3 {[%clk 0:03:00]}  Nf6 {[%clk 0:02:58]} 2. g3 {[%clk 0:03:01]}  g6 {[%clk 0:02:58]} 3. Bg2 {[%clk 0:03:01]}  Bg7 {[%clk 0:02:59]} 4. O-O {[%clk 0:03:02]}  O-O {[%clk 0:03:00]} 5. d4 {[%clk 0:03:03]}  d6 {[%clk 0:03:00]} 6. c4 {[%clk 0:03:04]}  Nc6 {[%clk 0:03:00]} 7. Nc3 {[%clk 0:03:04]}  e5 {[%clk 0:03:01]} 8. dxe5 {[%clk 0:03:04]}  Nxe5 {[%clk 0:03:02]} 9. Nxe5 {[%clk 0:03:04]}  dxe5 {[%clk 0:03:02]} 10. Bg5 {[%clk 0:03:03]}  c6 {[%clk 0:03:00]} 11. Qxd8 {[%clk 0:03:03]}  Rxd8 {[%clk 0:02:46]} 12. Ne4 {[%clk 0:03:03]} 1-0


[Site "https://www.chess.com"]

[Event "Titled Tuesday Blitz July 11 Early 2023"]
[White "Balint, Vilmos"]
[Black "Djokic, Mihailo"]
[WhiteFideId "718050"]
[BlackFideId "976440"]
[WhiteElo "2279"]
[BlackElo "2631"]
[Result "0-1"]
[Round "2"]
[TimeControl "180+2"]
[Date "2023.07.11"]
[WhiteClock "0:01:26"]
[BlackClock "0:01:03"]
[Board "97"]

1. d4 {[%clk 0:02:59]}  Nf6 {[%clk 0:02:58]} 2. Bf4 {[%clk 0:02:59]}  g6 {[%clk 0:02:57]} 3. Nc3 {[%clk 0:02:59]}  d5 {[%clk 0:02:57]} 4. e3 {[%clk 0:02:58]}  Bg7 {[%clk 0:02:58]} 5. Nb5 {[%clk 0:02:57]}  Na6 {[%clk 0:02:58]} 6. a4 {[%clk 0:02:55]}  O-O {[%clk 0:02:57]} 7. Be2 {[%clk 0:02:53]}  c6 {[%clk 0:02:57]} 8. Na3 {[%clk 0:02:53]}  Nc7 {[%clk 0:02:51]} 9. Nf3 {[%clk 0:02:53]}  c5 {[%clk 0:02:50]} 10. O-O {[%clk 0:02:53]}  Ne4 {[%clk 0:02:47]} 11. c3 {[%clk 0:02:51]}  b6 {[%clk 0:02:46]} 12. Nd2 {[%clk 0:02:48]}  Nd6 {[%clk 0:02:42]} 13. Bf3 {[%clk 0:02:45]}  Bb7 {[%clk 0:02:39]} 14. h3 {[%clk 0:02:45]}  Rc8 {[%clk 0:02:37]} 15. a5 {[%clk 0:02:45]}  cxd4 {[%clk 0:02:34]} 16. cxd4 {[%clk 0:02:45]}  bxa5 {[%clk 0:02:24]} 17. Nc2 {[%clk 0:02:45]}  Ba6 {[%clk 0:02:20]} 18. Re1 {[%clk 0:02:45]}  Bd3 {[%clk 0:02:17]} 19. Be2 {[%clk 0:02:31]}  Bxc2 {[%clk 0:02:15]} 20. Qxc2 {[%clk 0:02:31]}  Ne6 {[%clk 0:02:15]} 21. Qa4 {[%clk 0:02:18]}  Nxf4 {[%clk 0:01:59]} 22. exf4 {[%clk 0:02:19]}  Qb6 {[%clk 0:01:57]} 23. Bg4 {[%clk 0:02:17]}  Bxd4 {[%clk 0:01:51]} 24. Rxe7 {[%clk 0:02:11]}  Bxf2+ {[%clk 0:01:45]} 25. Kh1 {[%clk 0:02:11]}  Qxb2 {[%clk 0:01:39]} 26. Bxc8 {[%clk 0:02:03]}  Qxd2 {[%clk 0:01:21]} 27. Bg4 {[%clk 0:01:56]}  Ne4 {[%clk 0:01:10]} 28. Qa2 {[%clk 0:01:47]}  Ng3+ {[%clk 0:01:03]} 29. Kh2 {[%clk 0:01:26]}  Qxf4 {[%clk 0:01:03]} 0-1


[Site "https://www.chess.com"]

[Event "Titled Tuesday Blitz July 11 Early 2023"]
[White "Stepanencu, Nicodim-Cosmin"]
[Black "Tsyhanchuk, Stanislav"]
[WhiteFideId "1256220"]
[BlackFideId "13505130"]
[WhiteElo "2631"]
[BlackElo "2264"]
[Result "1-0"]
[Round "2"]
[TimeControl "180+2"]
[Date "2023.07.11"]
[WhiteClock "0:01:15"]
[BlackClock "0:00:13"]
[Board "98"]

1. c4 {[%clk 0:03:00]}  Nf6 {[%clk 0:02:53]} 2. Qc2 {[%clk 0:02:58]}  e6 {[%clk 0:02:50]} 3. Nf3 {[%clk 0:02:56]}  d5 {[%clk 0:02:50]} 4. e3 {[%clk 0:02:56]}  b6 {[%clk 0:02:43]} 5. cxd5 {[%clk 0:02:55]}  exd5 {[%clk 0:02:42]} 6. Bb5+ {[%clk 0:02:53]}  Bd7 {[%clk 0:02:41]} 7. Be2 {[%clk 0:02:51]}  c5 {[%clk 0:02:39]} 8. b3 {[%clk 0:02:50]}  Nc6 {[%clk 0:02:38]} 9. a3 {[%clk 0:02:48]}  Bd6 {[%clk 0:02:36]} 10. Bb2 {[%clk 0:02:48]}  O-O {[%clk 0:02:35]} 11. d3 {[%clk 0:02:47]}  Re8 {[%clk 0:02:32]} 12. Nbd2 {[%clk 0:02:47]}  Ne5 {[%clk 0:02:30]} 13. Nxe5 {[%clk 0:02:43]}  Bxe5 {[%clk 0:02:31]} 14. Bxe5 {[%clk 0:02:43]}  Rxe5 {[%clk 0:02:32]} 15. b4 {[%clk 0:02:42]}  Rc8 {[%clk 0:02:30]} 16. bxc5 {[%clk 0:02:40]}  bxc5 {[%clk 0:02:29]} 17. O-O {[%clk 0:02:37]}  Bf5 {[%clk 0:02:26]} 18. Nf3 {[%clk 0:02:25]}  Re7 {[%clk 0:02:23]} 19. Qd2 {[%clk 0:02:24]}  h6 {[%clk 0:02:05]} 20. h3 {[%clk 0:02:23]}  Rb7 {[%clk 0:01:59]} 21. Rfc1 {[%clk 0:02:19]}  Qb6 {[%clk 0:01:43]} 22. Bf1 {[%clk 0:02:10]}  Qb2 {[%clk 0:01:39]} 23. Qa5 {[%clk 0:02:05]}  c4 {[%clk 0:01:28]} 24. dxc4 {[%clk 0:02:02]}  Ne4 {[%clk 0:01:28]} 25. Qe1 {[%clk 0:01:52]}  dxc4 {[%clk 0:01:23]} 26. Rab1 {[%clk 0:01:50]}  c3 {[%clk 0:00:49]} 27. Ba6 {[%clk 0:01:21]}  Ng5 {[%clk 0:00:20]} 28. Rxb2 {[%clk 0:01:16]}  cxb2 {[%clk 0:00:13]} 29. Rxc8+ {[%clk 0:01:15]} 1-0


[Site "https://www.chess.com"]

[Event "Titled Tuesday Blitz July 11 Early 2023"]
[White "Lisjak, Zlatko"]
[Black "Mogirzan, Matei-Valeriu"]
[WhiteFideId "14502186"]
[BlackFideId "1257455"]
[WhiteElo "2164"]
[BlackElo "2609"]
[Result "0-1"]
[Round "2"]
[TimeControl "180+2"]
[Date "2023.07.11"]
[WhiteClock "0:00:06"]
[BlackClock "0:00:14"]
[Board "102"]

1. d4 {[%clk 0:03:00]}  Nf6 {[%clk 0:02:58]} 2. Nc3 {[%clk 0:03:00]}  d5 {[%clk 0:02:57]} 3. Bf4 {[%clk 0:03:00]}  c6 {[%clk 0:02:55]} 4. e3 {[%clk 0:03:00]}  e6 {[%clk 0:02:51]} 5. Nf3 {[%clk 0:02:52]}  a6 {[%clk 0:02:43]} 6. Bd3 {[%clk 0:02:50]}  c5 {[%clk 0:02:42]} 7. dxc5 {[%clk 0:02:48]}  Bxc5 {[%clk 0:02:41]} 8. O-O {[%clk 0:02:47]}  Nc6 {[%clk 0:02:41]} 9. e4 {[%clk 0:02:46]}  d4 {[%clk 0:02:01]} 10. Ne2 {[%clk 0:02:45]}  Qe7 {[%clk 0:01:49]} 11. Ne5 {[%clk 0:02:35]}  Nh5 {[%clk 0:01:36]} 12. Nxc6 {[%clk 0:02:26]}  bxc6 {[%clk 0:01:37]} 13. Bd2 {[%clk 0:02:21]}  Nf6 {[%clk 0:01:23]} 14. a3 {[%clk 0:02:19]}  O-O {[%clk 0:01:20]} 15. b4 {[%clk 0:02:17]}  Bb6 {[%clk 0:01:18]} 16. e5 {[%clk 0:02:01]}  Ng4 {[%clk 0:01:07]} 17. Bf4 {[%clk 0:01:54]}  f6 {[%clk 0:01:01]} 18. exf6 {[%clk 0:01:49]}  Qxf6 {[%clk 0:00:52]} 19. Bg3 {[%clk 0:01:44]}  e5 {[%clk 0:00:48]} 20. h3 {[%clk 0:01:39]}  Nh6 {[%clk 0:00:45]} 21. f4 {[%clk 0:01:38]}  e4 {[%clk 0:00:42]} 22. Bc4+ {[%clk 0:01:32]}  Kh8 {[%clk 0:00:42]} 23. Kh1 {[%clk 0:01:21]}  Nf5 {[%clk 0:00:39]} 24. Bf2 {[%clk 0:01:21]}  e3 {[%clk 0:00:28]} 25. Bg1 {[%clk 0:01:17]}  Nh4 {[%clk 0:00:22]} 26. g3 {[%clk 0:01:12]}  Nf5 {[%clk 0:00:18]} 27. Qe1 {[%clk 0:01:08]}  Bb7 {[%clk 0:00:18]} 28. Kh2 {[%clk 0:01:07]}  c5 {[%clk 0:00:17]} 29. bxc5 {[%clk 0:01:06]}  Qc6 {[%clk 0:00:15]} 30. Nxd4 {[%clk 0:00:06]}  Qg2# {[%clk 0:00:14]} 0-1


[Site "https://www.chess.com"]

[Event "Titled Tuesday Blitz July 11 Early 2023"]
[White "Mangialardo, Tiago Carvalho"]
[Black "HamedWafa4"]
[WhiteFideId "2130718"]
[WhiteElo "2133"]
[BlackElo "2608"]
[Result "0-1"]
[Round "2"]
[TimeControl "180+2"]
[Date "2023.07.11"]
[WhiteClock "0:00:00"]
[BlackClock "0:01:57"]
[Board "104"]

1. e4 {[%clk 0:03:00]}  e5 {[%clk 0:02:56]} 2. Nf3 {[%clk 0:02:59]}  Nc6 {[%clk 0:02:56]} 3. Bb5 {[%clk 0:02:58]}  a6 {[%clk 0:02:55]} 4. Ba4 {[%clk 0:02:58]}  Nf6 {[%clk 0:02:54]} 5. O-O {[%clk 0:02:52]}  Be7 {[%clk 0:02:52]} 6. c3 {[%clk 0:02:27]}  Nxe4 {[%clk 0:02:50]} 7. Re1 {[%clk 0:02:21]}  Nc5 {[%clk 0:02:49]} 8. Bxc6 {[%clk 0:02:09]}  dxc6 {[%clk 0:02:50]} 9. Nxe5 {[%clk 0:02:08]}  Nd3 {[%clk 0:02:49]} 10. Nxd3 {[%clk 0:02:06]}  Qxd3 {[%clk 0:02:50]} 11. Qe2 {[%clk 0:01:41]}  Qxe2 {[%clk 0:02:50]} 12. Rxe2 {[%clk 0:01:42]}  Be6 {[%clk 0:02:49]} 13. d4 {[%clk 0:01:40]}  O-O-O {[%clk 0:02:50]} 14. Bf4 {[%clk 0:01:31]}  c5 {[%clk 0:02:47]} 15. Nd2 {[%clk 0:00:52]}  cxd4 {[%clk 0:02:42]} 16. cxd4 {[%clk 0:00:46]}  Rxd4 {[%clk 0:02:22]} 17. Be5 {[%clk 0:00:45]}  Rg4 {[%clk 0:02:22]} 18. Rc1 {[%clk 0:00:37]}  c6 {[%clk 0:02:19]} 19. a3 {[%clk 0:00:11]}  Rd8 {[%clk 0:02:17]} 20. Ne4 {[%clk 0:00:11]}  Rd5 {[%clk 0:02:08]} 21. f3 {[%clk 0:00:05]}  Rg6 {[%clk 0:02:05]} 22. Bf4 {[%clk 0:00:02]}  h5 {[%clk 0:02:02]} 23. b4 {[%clk 0:00:01]}  h4 {[%clk 0:02:01]} 24. Rec2 {[%clk 0:00:01]}  h3 {[%clk 0:02:01]} 25. g4 {[%clk 0:00:01]}  Bxg4 {[%clk 0:01:58]} 26. Bg3 {[%clk 0:00:02]}  Bxf3 {[%clk 0:01:58]} 27. Nc3 {[%clk 0:00:00]}  Rd3 {[%clk 0:01:57]} 0-1


[Site "https://www.chess.com"]

[Event "Titled Tuesday Blitz July 11 Early 2023"]
[White "Sava, Christiansen-Danut-Eugen"]
[Black "Sadykov, Ramil"]
[WhiteFideId "1210114"]
[BlackFideId "24113590"]
[WhiteElo "1988"]
[BlackElo "2604"]
[Result "0-1"]
[Round "2"]
[TimeControl "180+2"]
[Date "2023.07.11"]
[WhiteClock "0:00:37"]
[BlackClock "0:00:28"]
[Board "106"]

1. d4 {[%clk 0:03:00]}  Nf6 {[%clk 0:03:00]} 2. c4 {[%clk 0:02:59]}  e6 {[%clk 0:03:00]} 3. g3 {[%clk 0:02:58]}  c5 {[%clk 0:02:55]} 4. d5 {[%clk 0:02:58]}  exd5 {[%clk 0:02:55]} 5. cxd5 {[%clk 0:02:59]}  d6 {[%clk 0:02:54]} 6. Nc3 {[%clk 0:02:58]}  g6 {[%clk 0:02:54]} 7. Bg2 {[%clk 0:02:58]}  Bg7 {[%clk 0:02:54]} 8. Nf3 {[%clk 0:02:59]}  O-O {[%clk 0:02:55]} 9. O-O {[%clk 0:02:59]}  Re8 {[%clk 0:02:55]} 10. a4 {[%clk 0:02:59]}  Ne4 {[%clk 0:02:55]} 11. Nxe4 {[%clk 0:02:47]}  Rxe4 {[%clk 0:02:56]} 12. Nd2 {[%clk 0:02:48]}  Rb4 {[%clk 0:02:55]} 13. Qc2 {[%clk 0:02:46]}  Nd7 {[%clk 0:02:51]} 14. Nc4 {[%clk 0:02:46]}  Ne5 {[%clk 0:02:50]} 15. Nxe5 {[%clk 0:02:43]}  Bxe5 {[%clk 0:02:51]} 16. Bd2 {[%clk 0:02:43]}  Rxb2 {[%clk 0:02:51]} 17. Qd3 {[%clk 0:02:42]}  c4 {[%clk 0:02:40]} 18. Qe3 {[%clk 0:02:40]}  Rb3 {[%clk 0:02:39]} 19. Qh6 {[%clk 0:02:33]}  Bg7 {[%clk 0:02:28]} 20. Qf4 {[%clk 0:02:31]}  Bxa1 {[%clk 0:02:27]} 21. Rxa1 {[%clk 0:02:31]}  Bf5 {[%clk 0:02:26]} 22. Qxc4 {[%clk 0:02:30]}  Rb1+ {[%clk 0:02:17]} 23. Rxb1 {[%clk 0:02:30]}  Bxb1 {[%clk 0:02:18]} 24. Bh6 {[%clk 0:02:27]}  Rc8 {[%clk 0:02:07]} 25. Qd4 {[%clk 0:02:27]}  f6 {[%clk 0:02:03]} 26. h4 {[%clk 0:02:26]}  a6 {[%clk 0:01:58]} 27. h5 {[%clk 0:02:25]}  Qe7 {[%clk 0:01:49]} 28. hxg6 {[%clk 0:02:21]}  hxg6 {[%clk 0:01:46]} 29. Qg4 {[%clk 0:02:22]}  Bf5 {[%clk 0:01:44]} 30. Qf3 {[%clk 0:01:55]}  Rc4 {[%clk 0:01:34]} 31. Qb3 {[%clk 0:01:47]}  Rc7 {[%clk 0:01:17]} 32. Qb2 {[%clk 0:01:45]}  Rc2 {[%clk 0:01:15]} 33. Qb6 {[%clk 0:01:17]}  Rxe2 {[%clk 0:01:11]} 34. Bf3 {[%clk 0:01:05]}  Re1+ {[%clk 0:01:08]} 35. Kg2 {[%clk 0:01:06]}  Be4 {[%clk 0:01:04]} 36. Be3 {[%clk 0:01:06]}  Bxf3+ {[%clk 0:01:00]} 37. Kxf3 {[%clk 0:01:07]}  Ra1 {[%clk 0:00:49]} 38. a5 {[%clk 0:01:02]}  Ra4 {[%clk 0:00:46]} 39. Qb1 {[%clk 0:00:56]}  f5 {[%clk 0:00:44]} 40. Qb3 {[%clk 0:00:39]}  Qe4+ {[%clk 0:00:42]} 41. Ke2 {[%clk 0:00:39]}  Qc4+ {[%clk 0:00:43]} 42. Qxc4 {[%clk 0:00:39]}  Rxc4 {[%clk 0:00:43]} 43. Kd3 {[%clk 0:00:40]}  Ra4 {[%clk 0:00:43]} 44. Bb6 {[%clk 0:00:41]}  Kf7 {[%clk 0:00:43]} 45. Ke3 {[%clk 0:00:38]}  g5 {[%clk 0:00:42]} 46. Kd3 {[%clk 0:00:37]}  Kg6 {[%clk 0:00:42]} 47. Ke3 {[%clk 0:00:37]}  Kh5 {[%clk 0:00:43]} 48. f3 {[%clk 0:00:37]}  Ra3+ {[%clk 0:00:43]} 49. Kf2 {[%clk 0:00:37]}  Rd3 {[%clk 0:00:39]} 50. Ke2 {[%clk 0:00:37]}  Rxd5 {[%clk 0:00:39]} 51. Ke3 {[%clk 0:00:37]}  Rb5 {[%clk 0:00:38]} 52. Bc7 {[%clk 0:00:38]}  Rb3+ {[%clk 0:00:35]} 53. Ke2 {[%clk 0:00:37]}  d5 {[%clk 0:00:36]} 54. Bb6 {[%clk 0:00:37]}  f4 {[%clk 0:00:27]} 55. g4+ {[%clk 0:00:37]}  Kh4 {[%clk 0:00:27]} 56. Bf2+ {[%clk 0:00:37]}  Kh3 {[%clk 0:00:28]} 57. Be1 {[%clk 0:00:36]}  Kg2 {[%clk 0:00:27]} 58. Bd2 {[%clk 0:00:34]}  d4 {[%clk 0:00:25]} 59. Bxf4 {[%clk 0:00:32]}  gxf4 {[%clk 0:00:26]} 60. g5 {[%clk 0:00:33]}  Rxf3 {[%clk 0:00:27]} 61. g6 {[%clk 0:00:32]}  Rg3 {[%clk 0:00:27]} 62. g7 {[%clk 0:00:33]}  Rxg7 {[%clk 0:00:27]} 63. Kd3 {[%clk 0:00:33]}  Rg5 {[%clk 0:00:28]} 64. Kxd4 {[%clk 0:00:34]}  Rxa5 {[%clk 0:00:29]} 65. Ke4 {[%clk 0:00:35]}  f3 {[%clk 0:00:29]} 66. Kf4 {[%clk 0:00:36]}  f2 {[%clk 0:00:29]} 67. Ke3 {[%clk 0:00:36]}  f1=Q {[%clk 0:00:29]} 68. Kd2 {[%clk 0:00:37]}  Qf3 {[%clk 0:00:29]} 69. Kc2 {[%clk 0:00:37]}  Ra2+ {[%clk 0:00:27]} 70. Kc1 {[%clk 0:00:38]}  Re2 {[%clk 0:00:27]} 71. Kb1 {[%clk 0:00:37]}  Qf1# {[%clk 0:00:28]} 0-1


[Site "https://www.chess.com"]